{"text_format":"3","workbook":"xlsx","n_sheets":1,"sheets":["Протокол ШЭ ВОШ по предмету"],"not_rendered":{"defined_names":1},"read":"whole","date_system":"1900"}

{"sheet":"Протокол ШЭ ВОШ по предмету","index":0,"n_rows":40,"n_cols":16,"rows_kept":40}
["№","Наименование ОО","Фамилия","Имя","Пол","Участник с ОВЗ (да/нет)","Класс обучения","Класс участия","Балл","Добавлено баллов по итогам апелляций","Итоговый балл","Максимальный балл","Статус","Призёр республиканского этапа прошлого года","ФИО учителя","Место работы учителя"]
[1,"Муниципальное бюджетное общеобразовательное учреждение \"Габишевская средняя общеобразовательная школа имени Махмута Ахметовича Гареева\" Лаишевского муниципального района Республики Татарстан","Алеева","Азалия","Ж","нет",7,7,71,0,71,100,"участник","нет","Шабаев Валерий Владиславович","Муниципальное бюджетное общеобразовательное учреждение \"Габишевская средняя общеобразовательная школа имени Махмута Ахметовича Гареева\" Лаишевского муниципального района Республики Татарстан"]
[2,"Муниципальное бюджетное общеобразовательное учреждение \"Нармонская средняя общеобразовательная школа\" Лаишевского муниципального района","Сидакова","Ульяна \n","Ж",{"$f":"$F$2","v":"нет"},7,7,51,0,51,100,"участник","нет","Хасанов Ильнар Хусаинович\r\n","Муниципальное бюджетное общеобразовательное учреждение \"Нармонская средняя общеобразовательная школа\" Лаишевского муниципального района"]
[3,"Мууниципальное бюджетное общеобразовательное учреждение Державинская основная общеобразовательная школа Лаишевского муниципального района Республики Татарстан","Кулакова ","Дарья","Ж",{"$f":"$F$3","v":"нет"},7,7,84,0,84,100,"Призер","нет","Валиуллин Ринат Гарифуллович","Мууниципальное бюджетное общеобразовательное учреждение Державинская основная общеобразовательная школа Лаишевского муниципального района Республики Татарстан"]
[4,{"$f":"$P$5","v":"Муниципальное бюджетное общеобразовательное учреждение  \nПесчано-Ковалинская средняя общеобразовательная школа Лаишевского муниципального района Республики  \nТатарстан"},"Сабитова ","Софья","Ж",{"$f":"$F$4","v":"нет"},{"$f":"G4","v":7},7,59,0,59,{"$f":"L2","v":100},"Участник",{"$f":"$N$4","v":"нет"},"Иванов Кирилл Михайлович","Муниципальное бюджетное общеобразовательное учреждение  \nПесчано-Ковалинская средняя общеобразовательная школа Лаишевского муниципального района Республики  \nТатарстан"]
[5,"Муниципальное бюджетное общеобразовательное учреждение \"Сокуровская средняя общеобразовательная школа имени Г.Р.Державина\" Лаишевского муниципального района РТ","Набиулина ","Роксана","Ж",{"$f":"F5","v":"нет"},7,7,81,{"$f":"J2","v":0},81,100,"призер",{"$f":"$N$5","v":"нет"},"Шишкин Анатолий Юрьевич ","Муниципальное бюджетное общеобразовательное учреждение \"Сокуровская средняя общеобразовательная школа имени Г.Р.Державина\" Лаишевского муниципального района РТ"]
[6,"Муниципальное бюджетное общеобразовательное учреждение \"Многопрофильный лицей \"Здоровое поколение\" Лаишевский район Республики Татарстан","Жукова","Ева","Ж",{"$f":"F6","v":"нет"},7,7,95,0,95,100,"Победитель","нет","Хидиятуллин Расим Фанисович","Муниципальное бюджетное общеобразовательное учреждение \"Многопрофильный лицей \"Здоровое поколение\" Лаишевский район Республики Татарстан"]
[7,"Муниципальное бюджетное общеобразовательное учреждение  \nПесчано-Ковалинская средняя общеобразовательная школа Лаишевского муниципального района Республики  \nТатарстан","Монш","Александр","М","нет",7,7,55,0,55,100,"Участник","нет","Иванов Кирилл Михайлович","Муниципальное бюджетное общеобразовательное учреждение  \nПесчано-Ковалинская средняя общеобразовательная школа Лаишевского муниципального района Республики  \nТатарстан"]
[8,"Муниципальное бюджетное общеобразовательное учреждение средняя общеобразовательная школа поселка имени 25 октября ","Титов ","Кирилл","М","нет",7,7,57,0,57,100,"Участник","нет","  Суханов Евгений Геннадьевич","Муниципальное бюджетное общеобразовательное учреждение средняя общеобразовательная школа поселка имени 25 октября "]
[9,"Муниципальное бюджетное общеобразовательное учреждение \"Никольская редняя общеобразовательная школа\" Лаишевский район Республики Татарстан","Ляшин","Александр","М","нет",6,7,50,0,50,100,"Участник","нет","Волков Сергей Николаевич","Муниципальное бюджетное общеобразовательное учреждение \"Никольская редняя общеобразовательная школа\" Лаишевский район Республики Татарстан"]
[10,{"$f":"$P$10","v":"Муниципальное бюджетное общеобразовательное учреждение \"Никольская редняя общеобразовательная школа\" Лаишевский район Республики Татарстан"},"Глушков","Артур","М","нет",7,7,60,0,60,100,"Призер","нет","Волков Сергей Николаевич",{"$f":"$P$10","v":"Муниципальное бюджетное общеобразовательное учреждение \"Никольская редняя общеобразовательная школа\" Лаишевский район Республики Татарстан"}]
[11,"МБОУ Лаишевская СОШ №2 им.Героя Советского Союза Б.К.Кузнецова","Перепилицын","Станислав","М","нет",7,7,73,0,73,100,"Победитель","нет","Прахова Диана Юрьевна","МБОУ Лаишевская СОШ №2 им.Героя Советского Союза Б.К.Кузнецова"]
[12,"Муниципальное бюджетное образовательное учреждение \"Рождественская СОШ\"","Панаева","Татьяна","Ж","нет",8,8,64,0,64,100,"Призер","нет","Корнеев Алексей Борисович","Муниципальное бюджетное образовательное учреждение \"Рождественская СОШ\""]
[13,"Муниципальное бюджетное общеобразовательное учреждение \"Никольская редняя общеобразовательная школа\" Лаишевский район Республики Татарстан","Иванова","Дарья","Ж","нет",8,8,56,0,56,100,"Призер","нет","Волков Сергей Николаевич","Муниципальное бюджетное общеобразовательное учреждение \"Никольская редняя общеобразовательная школа\" Лаишевский район Республики Татарстан"]
[14,"Муниципальное бюджетное образовательное учреждение \"Столбищенская СОШ имени А.П.Малышева\"","Андреева","Инесса","Ж","нет",8,8,72,0,72,100,"Победитель","нет","Тазетдинов Завдят Шайхутдинович","Муниципальное бюджетное образовательное учреждение \"Столбищенская СОШ имени А.П.Малышева\""]
[15,"Муниципальное бюджетное общеобразовательное учреждение \"Габишевская средняя общеобразовательная школа имени Махмута Ахметовича Гареева\" Лаишевского муниципального района Республики Татарстан","Шабалин","Эмиль","М","нет",8,8,71,0,71,100,"участник ","нет","Козлова Наталья Викторовна","Муниципальное бюджетное общеобразовательное учреждение \"Габишевская средняя общеобразовательная школа имени Махмута Ахметовича Гареева\" Лаишевского муниципального района Республики Татарстан"]
[16,{"$f":"$P$16","v":"Муниципальное бюджетное общеобразовательное учреждение \"Габишевская средняя общеобразовательная школа имени Махмута Ахметовича Гареева\" Лаишевского муниципального района Республики Татарстан"},"Сейдахметов","Данис","М","нет",8,8,66,0,66,100,"участник","нет",{"$f":"$O$16","v":"Козлова Наталья Викторовна"},{"$f":"$P$16","v":"Муниципальное бюджетное общеобразовательное учреждение \"Габишевская средняя общеобразовательная школа имени Махмута Ахметовича Гареева\" Лаишевского муниципального района Республики Татарстан"}]
[17,"Муниципальное бюджетное общеобразовательное учреждение \"Нармонская средняя общеобразовательная школа\" Лаишевского муниципального района","  Абдуллин \r\n","  Амир \r\n","М","нет",8,8,64,0,64,100,"участник","нет"," Галиакберов Раниль Шамилевич","Муниципальное бюджетное общеобразовательное учреждение \"Нармонская средняя общеобразовательная школа\" Лаишевского муниципального района"]
[18,"Муниципальное бюджетное общеобразовательное учреждение \"Сокуровская средняя общеобразовательная школа имени Г.Р.Державина\" Лаишевского муниципального района РТ","Торгаев ","Данил ","М","нет",8,8,78,0,78,100,"призер","нет","Хусаенов Искандер Ильхамович ","Муниципальное бюджетное общеобразовательное учреждение \"Сокуровская средняя общеобразовательная школа имени Г.Р.Державина\" Лаишевского муниципального района РТ"]
[19,"Муниципальное бюджетное образовательное учреждение \"Столбищенская СОШ имени А.П.Малышева\"","Фролов","Роман","М","нет",6,8,95,0,95,100,"победитель","нет","Тазетдинов Завдят Шайхутдинович","Муниципальное бюджетное образовательное учреждение \"Столбищенская СОШ имени А.П.Малышева\""]
[20,"Муниципальное бюджетное общеобразовательное учреждение \"Многопрофильный лицей \"Здоровое поколение\" Лаишевский район Республики Татарстан","Ибатуллин","Джамал","М","нет",8,8,79,0,79,100,"призер","нет","Хидиятуллин Расим Фанисович","Муниципальное бюджетное общеобразовательное учреждение \"Многопрофильный лицей \"Здоровое поколение\" Лаишевский район Республики Татарстан"]
[21,{"$f":"$P$21","v":"Муниципальное бюджетное общеобразовательное учреждение \"Многопрофильный лицей \"Здоровое поколение\" Лаишевский район Республики Татарстан"},"Кораблин","Анатолий","М","нет",8,8,69,0,69,100,"Участник","нет","Хидиятуллин Расим Фанисович",{"$f":"$P$21","v":"Муниципальное бюджетное общеобразовательное учреждение \"Многопрофильный лицей \"Здоровое поколение\" Лаишевский район Республики Татарстан"}]
[22,"МБОУ Лаишевская СОШ №2 им.Героя Советского Союза Б.К.Кузнецова","Зиятдинов","Амаль","М","нет",8,8,62,0,62,100,"Участник","нет","Прахова Диана Юрьевна","МБОУ Лаишевская СОШ №2 им.Героя Советского Союза Б.К.Кузнецова"]
[23,"Муниципальное бюджетное общеобразовательное учреждение \"Габишевская средняя общеобразовательная школа имени Махмута Ахметовича Гареева\" Лаишевского муниципального района Республики Татарстан","Алеева","Марьям","Ж","нет",9,9,77,0,77,100,"участник ","нет","Козлова Наталья Викторовна","Муниципальное бюджетное общеобразовательное учреждение \"Габишевская средняя общеобразовательная школа имени Махмута Ахметовича Гареева\" Лаишевского муниципального района Республики Татарстан"]
[24,"МБОУ \"СОШ пос.им 25 Октября \"","Нигматуллина ","Гульназ","Ж","нет",9,9,79,0,79,100,"участник","нет","Суханов Евгений Геннадьевич ","МБОУ \"СОШ пос.им 25 Октября \""]
[25,"Муниципальное бюджетное общеобразовательное учреждение \"Сокуровская средняя общеобразовательная школа имени Г.Р.Державина\" Лаишевского муниципального района РТ","Русланова","Эльвина","Ж","нет",9,9,85,0,85,100,"призер","нет","Абдурашитова Земфира Мустафаевна ","Муниципальное бюджетное общеобразовательное учреждение \"Сокуровская средняя общеобразовательная школа имени Г.Р.Державина\" Лаишевского муниципального района РТ"]
[26,"Муниципальное бюджетное общеобразовательное учреждение Среднедевятовская средняя общеобразовательная школа Лаишевского района РТ","Ахметзянова","Илина","Ж","нет",9,9,75,0,75,100,"участник","нет","Халиуллин Айдар Махмутович","Муниципальное бюджетное общеобразовательное учреждение Среднедевятовская средняя общеобразовательная школа Лаишевского района РТ"]
[27,{"$f":"$P$28","v":"Муниципальное бюджетное образовательное учреждение \"Столбищенская СОШ имени А.П.Малышева\""},"Хусаинова","Диляра","Ж","нет",9,9,97,0,97,100,"призер","нет","Косов Игорь Сергеевич","Муниципальное бюджетное образовательное учреждение \"Столбищенская СОШ имени А.П.Малышева\""]
[28,"Муниципальное бюджетное общеобразовательное учреждение \"Многопрофильный лицей \"Здоровое поколение\" Лаишевский район Республики Татарстан","Трошина","Дана","Ж","нет",9,9,98,0,98,100,"победитель","да","Трошин Владимир Леонидович","Муниципальное бюджетное общеобразовательное учреждение \"Многопрофильный лицей \"Здоровое поколение\" Лаишевский район Республики Татарстан"]
[29,"МБОУ \"СОШ пос.Им 25 Октября \"","Суханов ","Михаил ","М","нет",9,9,69,0,69,100,"призер","нет","Суханов Евгений Геннадьевич ","МБОУ \"СОШ пос.Им 25 Октября \""]
[30,"Муниципальное бюджетное общеобразовательное учреждение \"Сокуровская средняя общеобразовательная школа имени Г.Р.Державина\" Лаишевского муниципального района РТ","Сангинов","Шукрулло","М","нет",9,9,81,0,81,100,"победитель","нет","Абдурашитова Земфира Мустафаевна ","Муниципальное бюджетное общеобразовательное учреждение \"Сокуровская средняя общеобразовательная школа имени Г.Р.Державина\" Лаишевского муниципального района РТ"]
[31,"Муниципальное бюджетное общеобразовательное учреждение \"Многопрофильный лицей \"Здоровое поколение\" Лаишевский район Республики Татарстан","Гумеров","Амин","М","нет",9,9,74,0,74,100,"призер","нет","Трошин Владимир Леонидович","Муниципальное бюджетное общеобразовательное учреждение \"Многопрофильный лицей \"Здоровое поколение\" Лаишевский район Республики Татарстан"]
[32,"Муниципальное бюджетное общеобразовательное учреждение  \n\"Гимназия №1 г. Лаишево\" Лаишевского муниципального района Республики  \nТатарстан","Салова","Арина","Ж","нет",10,10,63,0,63,100,"победитель","нет","Козин Сергей Петрович\r\n","Муниципальное бюджетное общеобразовательное учреждение  \n\"Гимназия №1 г. Лаишево\" Лаишевского муниципального района Республики  \nТатарстан"]
[33,"Муниципальное бюджетное общеобразовательное учреждение \"Нармонская средняя общеобразовательная школа\" Лаишевского муниципального района","Гаязов \r\n","Айдын \r\n","М","нет",10,10,74,0,74,100,"призер","нет","Хасанов Ильнар Хусаинович\n","Муниципальное бюджетное общеобразовательное учреждение \"Нармонская средняя общеобразовательная школа\" Лаишевского муниципального района"]
[34,"Муниципальное бюджетное общеобразовательное учреждение  \nПесчано-Ковалинская средняя общеобразовательная школа Лаишевского муниципального района Республики  \nТатарстан","Жаров","Владислав","М","нет",10,10,46,0,46,100,"участник","нет","Иванов Кирилл Михайлович","Муниципальное бюджетное общеобразовательное учреждение  \nПесчано-Ковалинская средняя общеобразовательная школа Лаишевского муниципального района Республики  \nТатарстан"]
[35,"Муниципальное бюджетное образовательное учреждение \"Столбищенская СОШ имени А.П.Малышева\"","Гайнутдинов","Алмаз","М","нет",10,10,77,0,77,100,"победитель","нет","Тазетдинов Завдят Шайхутдинович","Муниципальное бюджетное образовательное учреждение \"Столбищенская СОШ имени А.П.Малышева\""]
[36,"Муниципальное бюджетное общеобразовательное учреждение \"Нармонская средняя общеобразовательная школа\" Лаишевского муниципального района","Хасанова","Диана","Ж","нет",11,11,79,0,79,100,"призер","нет","Хасанов Ильнар Хусаинович","Муниципальное бюджетное общеобразовательное учреждение \"Нармонская средняя общеобразовательная школа\" Лаишевского муниципального района"]
[37,"Муниципальное бюджетное образовательное учреждение \"Столбищенская СОШ имени А.П.Малышева\"","Зиновьева","Юлия","Ж","нет",11,11,82,0,82,100,"победитель","нет","Тазединов Завдят Шайхутдинович","Муниципальное бюджетное образовательное учреждение \"Столбищенская СОШ имени А.П.Малышева\""]
[38,"Муниципальное бюджетное общеобразовательное учреждение \"Габишевская средняя общеобразовательная школа имени Махмута Ахметовича Гареева\" Лаишевского муниципального района Республики Татарстан","Шабаев","Даниял","М","нет",11,11,78,0,78,100,"победитель","нет","Козлова Наталья Викторовна","Муниципальное бюджетное общеобразовательное учреждение \"Габишевская средняя общеобразовательная школа имени Махмута Ахметовича Гареева\" Лаишевского муниципального района Республики Татарстан"]
[39,"Муниципальное бюджетное общеобразовательное учреждение \"Габишевская средняя общеобразовательная школа имени Махмута Ахметовича Гареева\" Лаишевского муниципального района Республики Татарстан","Загидуллин","Аяз","М","нет",11,11,49,0,49,100,"участник","нет","Козлова Наталья Викторовна","Муниципальное бюджетное общеобразовательное учреждение \"Габишевская средняя общеобразовательная школа имени Махмута Ахметовича Гареева\" Лаишевского муниципального района Республики Татарстан"]